bitfinex/quotes_SOLUSD_20220119
["timestamp","ask_amount","ask_price","bid_price","bid_amount"]
[1642569395143,34.88199053,138.9,138.81,38.2904]
[1642569395345,10.8052,138.9,138.81,38.2904]
[1642569395543,4.51615868,138.95,138.82,7.32023073]
[1642569395742,1.63615868,138.95,138.85,10.801]
[1642569395966,2.879,138.94,138.86,2.879]
[1642569396166,1.63615868,138.95,138.86,3.129]
[1642569396365,46.54925493,138.94,138.87,37.10617371]
[1642569396568,1.63615868,138.95,138.88,24.7645]
[1642569396866,1.63615868,138.95,138.88,38.6932]
[1642569401873,0.25,138.94,138.88,27.6435]
[1642569402073,3.129,138.94,138.88,24.7645]
[1642569402471,3.129,138.94,138.86,10.8011]
[1642569402670,3.129,138.94,138.84,23.0267]
[1642569403473,13.9304,138.94,138.85,10.8026]
[1642569404175,13.9304,138.94,138.85,34.8538]
[1642569404575,48.70038761,138.92,138.85,34.8538]
[1642569404773,3.13,138.91,138.85,34.8538]
[1642569406274,2.88,138.91,138.85,34.8538]
[1642569407074,51.58038761,138.92,138.85,34.8538]
[1642569407775,0.25,138.91,138.85,34.8538]
[1642569408177,0.25,138.91,138.86,0.25]
[1642569408979,0.25,138.91,138.85,37.7338]
[1642569409182,3.13,138.91,138.85,34.8538]
[1642569410380,3.13,138.91,138.85,24.0512]
[1642569410782,13.9337,138.91,138.85,24.0512]
[1642569410982,13.9337,138.91,138.82,2.88]
[1642569411185,20.1167,138.91,138.8,27.0898]
[1642569411388,20.1167,138.91,138.8,24.2098]
[1642569412184,20.1167,138.91,138.81,0.25]
[1642569414389,20.1167,138.91,138.81,3.13]
[1642569414786,6.0,138.9,138.81,3.13]
[1642569415086,10.8069,138.88,138.81,3.13]
[1642569415285,0.25,138.87,138.81,3.13]
[1642569416286,0.25,138.88,138.81,2.88]
[1642569416488,43.4410948,138.86,138.81,2.88]
[1642569417787,43.4410948,138.86,138.82,0.25]
[1642569419087,43.4410948,138.86,138.8,35.0164]
[1642569419288,43.4410948,138.86,138.82,0.25]
[1642569420787,43.4410948,138.86,138.81,2.88]
[1642569420994,43.4410948,138.86,138.8,35.0164]
[1642569421188,43.4410948,138.86,138.81,0.25]
[1642569423887,43.4410948,138.86,138.81,11.0555]
[1642569424090,1.20403994,138.89,138.82,2.88]
[1642569424387,1.20403994,138.89,138.83,0.25]
[1642569425288,1.20403994,138.89,138.84,2.88]
[1642569425686,1.20403994,138.89,138.85,0.25]
[1642569426595,2.88,138.94,138.86,2.88]
[1642569426787,1.63615868,138.95,138.87,0.25]
[1642569426987,1.63615868,138.95,138.88,2.879]
[1642569427190,6.0,138.94,138.89,0.25]
[1642569427391,39.08810256,138.93,138.87,0.25]
[1642569428190,39.08810256,138.93,138.87,11.0506]
[1642569428592,41.96710256,138.93,138.87,0.25]
[1642569428992,0.25,138.92,138.86,6.0]
[1642569429292,0.25,138.92,138.87,0.25]
[1642569429494,41.96710256,138.93,138.87,0.25]
[1642569430194,41.96710256,138.93,138.86,0.25]
[1642569430394,39.08810256,138.93,138.86,3.129]
[1642569430593,49.89020256,138.93,138.86,13.9309]
[1642569431398,39.08810256,138.93,138.86,13.9309]
[1642569431597,49.89030256,138.93,138.86,13.9309]
[1642569431995,2.879,138.92,138.86,13.6809]
[1642569433094,52.76930256,138.93,138.86,10.8019]
[1642569433695,52.76930256,138.93,138.87,0.25]
[1642569435101,41.96710256,138.93,138.87,0.25]
[1642569435801,41.96710256,138.93,138.87,11.0511]
[1642569436001,39.08810256,138.93,138.87,10.8011]
[1642569436202,8.879,138.94,138.88,0.25]
[1642569436401,6.0,138.94,138.88,0.25]
[1642569437002,6.0,138.94,138.88,6.25]
[1642569437229,6.0,138.94,138.88,0.25]
[1642569437633,6.0,138.94,138.87,0.25]
[1642569438433,6.0,138.94,138.89,10.7989]
[1642569438734,6.0,138.94,138.9,0.25]
[1642569439735,6.0,138.94,138.88,0.25]
[1642569440534,6.0,138.94,138.9,10.7987]
[1642569440735,6.0,138.94,138.91,0.25]
[1642569441536,6.0,138.94,138.92,6.06439994]
[1642569446741,6.0,138.94,138.9,10.7987]
[1642569446941,6.0,138.94,138.91,0.25]
[1642569448143,6.0,138.94,138.9,0.25]
[1642569451850,6.0,138.94,138.89,10.7997]
[1642569452051,8.879,138.94,138.88,2.879]
[1642569452252,0.25,138.93,138.88,2.879]
[1642569452451,2.879,138.92,138.88,2.879]
[1642569453252,2.879,138.93,138.88,2.879]
[1642569453452,13.9312,138.93,138.88,2.879]
[1642569453654,2.879,138.93,138.88,2.879]
[1642569454455,2.879,138.93,138.87,23.4808]
[1642569454656,2.879,138.93,138.88,0.25]
[1642569454856,2.879,138.93,138.87,23.4808]
[1642569455883,0.25,138.92,138.87,23.4808]
[1642569456078,2.879,138.93,138.87,23.4808]
[1642569456277,0.25,138.92,138.87,23.4808]
[1642569456478,0.25,138.93,138.87,23.4808]
[1642569457077,21.70530909,138.94,138.88,0.25]
[1642569457877,19.6804,138.94,138.88,0.25]
[1642569458478,0.25,138.93,138.87,34.282]
[1642569458677,3.129,138.93,138.87,34.282]
[1642569458877,0.25,138.93,138.87,34.282]
[1642569459279,21.70530909,138.94,138.88,0.25]
[1642569459580,6.0,138.94,138.88,11.0503]
[1642569475895,3.66106777,138.95,138.89,6.0]
[1642569476097,1.63615868,138.95,138.89,31.7627]
[1642569476297,1.63615868,138.95,138.9,11.0469]
[1642569476500,1.63615868,138.95,138.91,2.879]
[1642569476699,1.63615868,138.95,138.92,0.25]
[1642569477500,1.63615868,138.95,138.93,6.06439994]
[1642569477698,1.63615868,138.95,138.94,0.25]
[1642569478099,1.63615868,138.95,138.93,6.06439994]
[1642569478298,1.63615868,138.95,138.94,0.25]
[1642569479998,1.63615868,138.95,138.94,11.0459]
[1642569480199,2.02490909,138.99,138.94,11.0459]
[1642569480399,3.41350382,139.0,138.94,13.9239]
[1642569480800,3.41350382,139.0,138.94,11.0459]
[1642569481001,50.41737418,138.99,138.94,11.0459]
[1642569481206,0.25,138.98,138.94,10.7959]
[1642569481400,53.29537418,138.99,138.93,10.7966]
[1642569481603,50.41737418,138.99,138.93,10.7966]
[1642569481800,50.41737418,138.99,138.94,0.25]
[1642569483407,50.41737418,138.99,138.94,11.0459]
[1642569483605,50.41737418,138.99,138.94,10.7959]
[1642569484006,51.27046509,138.99,138.94,10.7959]
[1642569484210,51.27046509,138.99,138.95,0.25]
[1642569484407,48.39246509,138.99,138.95,0.25]
[1642569484809,48.39246509,138.99,138.94,10.7959]
[1642569485008,51.27046509,138.99,138.94,10.7959]
[1642569485207,51.27046509,138.99,138.95,0.25]
[1642569485408,48.39246509,138.99,138.95,0.25]
[1642569488015,50.41737418,138.99,138.95,0.25]
[1642569488216,48.39246509,138.99,138.95,0.25]
[1642569490448,50.41737418,138.99,138.95,0.25]
[1642569490946,3.41350382,139.0,138.95,0.25]
[1642569491150,3.41350382,139.0,138.95,11.0449]
[1642569491352,3.41350382,139.0,138.95,10.7949]
[1642569491560,1.38859473,139.0,138.96,0.25]
[1642569491759,1.38859473,139.0,138.96,3.128]
[1642569491960,1.38859473,139.0,138.96,9.128]
[1642569492156,1.38859473,139.0,138.96,82.51823073]
[1642569492360,1.38859473,139.0,138.97,10.7927]
[1642569492556,1.38859473,139.0,138.98,6.06439994]
[1642569492755,1.38859473,139.0,138.98,6.31439994]
[1642569492963,2.02490909,139.03,138.98,6.31439994]
[1642569493157,2.02490909,139.04,138.98,9.19039994]
[1642569493386,2.02490909,139.03,138.98,6.31439994]
[1642569493756,2.02490909,139.04,138.98,6.31439994]
[1642569494156,37.51867056,139.03,138.98,6.31439994]
[1642569494357,35.49376147,139.03,138.98,6.31439994]
[1642569494562,35.49376147,139.03,138.98,17.10689994]
[1642569495358,2.876,139.02,138.98,6.06439994]
[1642569495557,2.02490909,139.01,138.98,6.06439994]
[1642569495758,3.126,139.0,138.98,6.06439994]
[1642569496257,2.876,139.0,138.98,6.06439994]
[1642569497062,4.90090909,139.01,138.98,6.06439994]
[1642569497260,0.25,138.99,138.94,10.7951]
[1642569497457,4.90290909,139.0,138.95,0.25]
[1642569497659,2.02490909,139.0,138.94,10.7951]
[1642569497959,6.73382847,138.99,138.92,10.7967]
[1642569498158,3.85582847,138.99,138.92,10.7967]
[1642569498360,2.878,138.98,138.92,10.7967]
[1642569498758,45.47795604,138.97,138.92,10.7967]
[1642569498958,45.47795604,138.97,138.93,0.25]
[1642569500262,45.47795604,138.97,138.93,11.0466]
[1642569500559,45.47795604,138.97,138.93,10.7966]
[1642569500760,45.47795604,138.97,138.94,0.25]
[1642569502464,45.47795604,138.97,138.95,3.03219997]
[1642569503765,45.47795604,138.97,138.94,0.25]
[1642569504368,45.47795604,138.97,138.95,3.03219997]
[1642569505568,3.60582847,138.99,138.95,3.03219997]
[1642569505766,3.60582847,138.99,138.94,0.25]
[1642569506166,3.60582847,138.99,138.93,10.7966]
[1642569506468,2.02490909,138.98,138.93,10.7966]
[1642569506671,45.75695895,138.97,138.93,10.7966]
[1642569506869,45.75695895,138.97,138.94,0.25]
[1642569507874,45.75695895,138.97,138.92,0.25]
[1642569509500,45.75695895,138.97,138.92,11.0473]
[1642569513505,45.75695895,138.97,138.92,0.25]
[1642569514303,47.78186804,138.97,138.92,0.25]
[1642569522414,45.75695895,138.97,138.92,0.25]
[1642569522612,47.78186804,138.97,138.92,0.25]
[1642569524016,47.78186804,138.97,138.92,11.0473]
[1642569527221,47.78186804,138.97,138.92,13.9253]
[1642569529931,47.78186804,138.97,138.92,3.128]
[1642569530528,47.78186804,138.97,138.92,0.25]
[1642569530529,2.02490909,138.96,138.92,0.25]
[1642569531530,2.02490909,138.96,138.89,2.878]
[1642569531731,5.15290909,138.95,138.88,10.8005]
[1642569531931,2.02490909,138.94,138.86,24.6426]
[1642569532131,2.879,138.93,138.86,24.6426]
[1642569532331,6.63,138.93,138.86,24.6426]
[1642569532534,39.64638099,138.92,138.86,24.6426]
[1642569532732,39.64638099,138.92,138.87,0.25]
[1642569533136,39.64638099,138.92,138.86,24.6426]
[1642569533535,39.64638099,138.92,138.87,10.8013]
[1642569534232,39.64638099,138.92,138.88,0.25]
[1642569535059,39.64638099,138.92,138.87,10.8013]
[1642569536064,39.64638099,138.92,138.86,35.4446]
[1642569536261,3.129,138.91,138.86,35.4446]
[1642569536462,2.879,138.91,138.86,35.4446]
[1642569537465,42.52638099,138.92,138.86,35.4446]
[1642569537666,39.64638099,138.92,138.87,11.0507]
[1642569538668,0.25,138.91,138.87,10.8007]
[1642569538867,0.25,138.91,138.84,23.6491]
[1642569538868,2.879,138.91,138.84,23.6491]
[1642569539068,3.129,138.91,138.84,23.6491]
[1642569539268,3.129,138.91,138.85,0.25]
[1642569539869,2.879,138.91,138.85,0.25]
[1642569540473,2.879,138.91,138.85,11.0528]
[1642569540671,53.32938099,138.92,138.85,11.0528]
[1642569540872,53.32938099,138.92,138.85,35.0425]
[1642569541872,50.44938099,138.92,138.85,37.9225]
[1642569542073,39.64638099,138.92,138.85,37.9225]
[1642569542472,39.64638099,138.92,138.85,13.6828]
[1642569542677,2.88,138.91,138.85,2.88]
[1642569542874,11.00490909,138.91,138.85,2.88]
[1642569543374,0.25,138.9,138.85,2.88]
[1642569543573,2.88,138.89,138.85,2.88]
[1642569543773,11.0562,138.88,138.85,2.88]
[1642569543976,41.75430121,138.87,138.85,2.88]
[1642569544175,0.25,138.86,138.85,2.88]
[1642569544374,10.8062,138.88,138.85,2.88]
[1642569544573,2.88,138.89,138.81,2.88]
[1642569544773,0.25,138.88,138.81,26.306]
[1642569544975,3.13,138.88,138.81,23.426]
[1642569545474,44.90043532,138.87,138.81,23.426]
[1642569546376,3.13,138.88,138.81,23.426]
[1642569546579,2.88,138.88,138.82,0.25]
[1642569546775,2.88,138.9,138.82,3.13]
[1642569546978,2.88,138.91,138.82,0.25]
[1642569547176,6.25,138.89,138.81,2.88]
[1642569547379,2.88,138.88,138.79,2.88]
[1642569547579,10.807,138.87,138.79,11.0565]
[1642569547778,11.057,138.87,138.79,11.0565]
[1642569548182,44.63102759,138.86,138.79,11.0565]
[1642569549280,44.63102759,138.86,138.79,10.8065]
[1642569549479,3.13,138.85,138.79,10.8065]
[1642569549680,2.88,138.85,138.79,10.8065]
[1642569550681,44.63102759,138.86,138.8,0.25]
[1642569551682,0.25,138.85,138.79,2.88]
[1642569551879,0.25,138.85,138.78,22.7022]
[1642569551880,3.13,138.85,138.78,22.7022]
[1642569552079,9.13,138.85,138.78,22.7022]
[1642569553583,19.9386,138.85,138.79,0.25]
[1642569553780,17.0586,138.85,138.79,0.25]
[1642569556783,17.0586,138.85,138.78,25.5822]
[1642569556987,2.88,138.84,138.78,22.7022]
[1642569557184,2.88,138.84,138.79,0.25]
[1642569557793,13.6893,138.84,138.78,22.7022]
[1642569558790,0.25,138.83,138.76,2.88]
[1642569558989,13.6913,138.82,138.73,2.88]
[1642569559190,40.15130515,138.81,138.72,2.882]
[1642569559389,40.15130515,138.81,138.71,2.882]
[1642569560392,10.8126,138.8,138.72,10.8118]
[1642569560592,13.6946,138.8,138.72,10.8118]
[1642569560794,0.25,138.79,138.72,10.8118]
[1642569561513,6.25,138.79,138.72,10.8118]
[1642569561712,0.25,138.79,138.72,10.8118]
[1642569561911,6.25,138.79,138.73,22.5865]
[1642569562114,6.0,138.78,138.73,22.5865]
[1642569562311,6.0,138.78,138.69,25.99]
[1642569562514,13.6958,138.78,138.7,10.8136]
[1642569562714,0.25,138.77,138.7,10.5636]
[1642569563115,0.25,138.77,138.7,34.9753]
[1642569563515,2.882,138.78,138.7,34.9753]
[1642569563714,2.883,138.8,138.7,34.9753]
[1642569563914,39.90130515,138.81,138.7,36.29341479]
[1642569564114,39.90130515,138.81,138.71,2.882]
[1642569564314,3.132,138.8,138.72,33.8969]
[1642569565115,13.9443,138.8,138.72,23.0846]
[1642569565316,6.0,138.79,138.72,22.8346]
[1642569565516,2.882,138.78,138.72,22.8346]
[1642569565717,3.132,138.78,138.72,22.8346]
[1642569565919,3.132,138.78,138.73,0.25]
[1642569566117,0.25,138.78,138.73,0.25]
[1642569566417,11.0639,138.78,138.73,0.25]
[1642569567321,11.0639,138.78,138.72,22.8346]
[1642569567518,11.0639,138.78,138.73,0.25]
[1642569568521,0.25,138.78,138.73,0.25]
[1642569571029,0.25,138.78,138.73,11.0617]
[1642569572830,0.25,138.78,138.73,0.25]
[1642569575938,16.8136,138.79,138.73,0.25]
[1642569576234,6.0,138.79,138.73,0.25]
[1642569576436,6.0,138.79,138.74,2.882]
[1642569576634,46.0922,138.84,138.74,2.882]
[1642569576839,0.25,138.83,138.75,0.25]
[1642569577038,40.00293268,138.83,138.76,2.88]
[1642569577237,39.75293268,138.83,138.77,0.25]
[1642569577437,50.56353268,138.83,138.76,2.882]
[1642569577739,50.56353268,138.83,138.77,0.25]
[1642569578636,6.0,138.82,138.77,0.25]
[1642569583369,8.88,138.82,138.76,26.4371]
[1642569583769,8.88,138.82,138.77,0.25]
[1642569584870,8.88,138.82,138.76,26.4371]
[1642569585072,8.88,138.82,138.77,0.25]
[1642569585274,6.0,138.82,138.77,0.25]
[1642569586576,2.88,138.83,138.77,0.25]
[1642569586775,2.02490909,138.84,138.77,3.13]
[1642569586976,2.02490909,138.85,138.77,17.68939985]
[1642569587175,3.437045,138.86,138.77,17.94939985]
[1642569587576,43.29847522,138.86,138.77,17.94939985]
[1642569588080,43.29847522,138.86,138.8,10.8053]
[1642569588279,43.29847522,138.86,138.81,0.25]
[1642569589378,43.29847522,138.86,138.8,0.25]
[1642569589577,43.29847522,138.86,138.81,10.8053]
[1642569589779,43.29847522,138.86,138.82,0.25]
[1642569589979,1.41213591,138.86,138.82,0.25]
[1642569590579,1.41213591,138.86,138.82,11.0548]
[1642569592079,1.41213591,138.86,138.82,10.8048]
[1642569592280,1.41213591,138.86,138.83,0.25]
[1642569593381,1.41213591,138.86,138.84,6.06439994]
[1642569595581,37.38624669,138.86,138.84,6.06439994]
[1642569596883,37.38624669,138.86,138.82,10.8048]
[1642569597084,37.38624669,138.86,138.8,27.5422]
[1642569597284,37.38624669,138.86,138.81,0.25]
[1642569597683,37.38624669,138.86,138.8,24.6622]
[1642569598585,37.38624669,138.86,138.81,0.25]
[1642569606319,37.38624669,138.86,138.8,38.3487]
[1642569606519,37.38624669,138.86,138.8,35.4687]
[1642569606718,37.38624669,138.86,138.81,0.25]
[1642569615027,37.38624669,138.86,138.81,11.0556]
[1642569615825,1.41213591,138.86,138.81,11.0556]
[1642569616025,1.41213591,138.86,138.81,12.37799985]
[1642569616226,1.41213591,138.86,138.82,2.88]
[1642569616426,1.41213591,138.86,138.83,10.8036]
[1642569616628,1.41213591,138.86,138.83,11.0536]
[1642569617025,1.41213591,138.86,138.84,6.06439994]
[1642569617225,1.41213591,138.86,138.85,0.25]
[1642569619431,2.02490909,138.89,138.85,0.25]
[1642569619629,2.02490909,138.9,138.85,0.25]
[1642569620029,2.02490909,138.9,138.84,2.88]
[1642569620229,2.02490909,138.9,138.85,0.25]
[1642569620432,2.02490909,138.9,138.85,6.25]
[1642569620630,36.90748481,138.91,138.85,6.25]
[1642569620929,36.90748481,138.91,138.85,0.25]
[1642569621431,36.90748481,138.91,138.85,17.0524]
[1642569621629,36.90748481,138.91,138.85,11.0524]
[1642569626736,34.88257572,138.91,138.85,11.0524]
[1642569629540,39.78748481,138.91,138.85,11.0524]
[1642569629745,2.27490909,138.9,138.84,24.0331]
[1642569629944,2.88,138.89,138.8,38.8924]
[1642569630145,4.90490909,138.89,138.81,6.0]
[1642569630342,4.90490909,138.89,138.81,0.25]
[1642569630543,2.27490909,138.88,138.81,0.25]
[1642569630745,2.88,138.87,138.81,0.25]
[1642569630944,37.02827834,138.86,138.81,0.25]
[1642569631243,37.02827834,138.86,138.8,35.4903]
[1642569631843,37.02827834,138.86,138.8,24.6838]
[1642569632474,2.88,138.85,138.81,0.25]
[1642569632771,37.02827834,138.86,138.81,0.25]
[1642569632971,37.02827834,138.86,138.8,24.6838]
[1642569633672,37.02827834,138.86,138.81,0.25]
[1642569637677,37.02827834,138.86,138.81,11.0557]
[1642569641281,37.02827834,138.86,138.81,13.9357]
[1642569642483,37.02827834,138.86,138.81,11.0557]
[1642569643184,2.88,138.88,138.81,11.0557]
[1642569643384,2.02490909,138.89,138.82,37.0409]
[1642569643586,12.82930909,138.9,138.82,37.0409]
[1642569643784,12.82930909,138.9,138.83,0.25]
[1642569643983,2.02490909,138.9,138.82,26.2365]
[1642569644883,34.81967051,138.89,138.82,26.2365]
[1642569645289,34.81967051,138.89,138.83,0.25]
[1642569645488,34.81967051,138.89,138.83,11.0542]
[1642569647892,34.81967051,138.89,138.83,10.8042]
[1642569649193,34.81967051,138.89,138.84,11.0533]
[1642569649393,34.81967051,138.89,138.84,10.8033]
[1642569649592,34.81967051,138.89,138.85,0.25]
[1642569650498,34.81967051,138.89,138.84,10.8033]
[1642569650693,34.81967051,138.89,138.85,0.25]
[1642569650893,34.81967051,138.89,138.84,10.8033]
[1642569651095,34.81967051,138.89,138.85,0.25]
[1642569652998,34.81967051,138.89,138.84,10.8033]
[1642569653194,34.81967051,138.89,138.83,10.8044]
[1642569653395,3.13,138.88,138.82,23.3565]
[1642569653597,2.02490909,138.87,138.78,2.88]
[1642569653794,2.88,138.86,138.77,2.88]
[1642569653996,4.90490909,138.87,138.78,6.0]
[1642569654198,4.90490909,138.88,138.79,12.12979985]
[1642569654797,4.90490909,138.88,138.8,0.25]
[1642569655397,15.71090909,138.88,138.81,10.8057]
[1642569655600,2.27490909,138.87,138.8,0.25]
[1642569655799,2.27490909,138.87,138.8,6.25]
[1642569656498,2.27490909,138.87,138.8,17.0567]
[1642569657498,2.27490909,138.87,138.8,11.0567]
[1642569657697,2.02490909,138.87,138.8,11.0567]
[1642569658106,15.71090909,138.88,138.8,11.0567]
[1642569659331,3.15794447,138.87,138.8,11.0567]
[1642569659530,2.88,138.86,138.8,11.0567]
[1642569659931,4.90490909,138.86,138.8,11.0567]
[1642569660131,4.90490909,138.86,138.8,0.25]
[1642569660532,15.71240909,138.86,138.8,0.25]
[1642569660737,15.71240909,138.86,138.79,23.5847]
[1642569660933,0.25,138.85,138.78,10.8075]
[1642569661134,2.88,138.84,138.76,10.8098]
[1642569661334,4.90490909,138.84,138.76,10.8098]
[1642569661531,0.25,138.83,138.76,10.8098]
[1642569661733,11.06,138.83,138.76,10.8098]
[1642569661932,52.41397776,138.83,138.76,10.8098]
[1642569662132,52.41397776,138.83,138.77,0.25]
[1642569662933,52.41397776,138.83,138.75,2.88]
[1642569663134,52.41397776,138.83,138.73,23.4007]
[1642569663135,10.8121,138.81,138.73,23.4007]
[1642569663338,3.132,138.8,138.75,0.25]
[1642569663535,2.882,138.81,138.75,0.25]
[1642569663737,43.37888685,138.83,138.74,2.882]
[1642569663937,2.882,138.81,138.74,2.882]
[1642569664136,3.132,138.82,138.74,10.8111]
[1642569664336,2.882,138.82,138.74,10.8111]
[1642569664636,2.882,138.82,138.74,12.13349985]
[1642569665034,2.882,138.82,138.75,0.25]
[1642569665236,44.23597776,138.83,138.75,13.9418]
[1642569665436,44.23597776,138.83,138.75,37.1866]
[1642569666537,41.35397776,138.83,138.75,37.1866]
[1642569667138,52.16387776,138.83,138.75,37.1866]
[1642569669838,41.35397776,138.83,138.75,37.1866]
[1642569670241,0.25,138.82,138.75,37.1866]
[1642569670439,3.132,138.82,138.75,37.1866]
[1642569671242,2.882,138.82,138.75,37.1866]
[1642569671441,44.23597776,138.83,138.75,37.1866]
[1642569671641,44.23597776,138.83,138.75,34.3046]
[1642569672043,55.04587776,138.83,138.75,34.3046]
[1642569672346,52.16387776,138.83,138.75,34.3046]
[1642569672542,2.882,138.82,138.75,34.3046]
[1642569680754,0.25,138.81,138.75,34.3046]
[1642569681656,2.882,138.82,138.75,34.3046]
[1642569681957,55.04587776,138.83,138.75,34.3046]
[1642569682359,57.07078685,138.83,138.75,34.3046]
[1642569683159,0.25,138.82,138.75,34.3046]
[1642569683358,2.882,138.81,138.75,0.25]
[1642569683860,0.25,138.8,138.74,0.25]
[1642569685963,0.25,138.8,138.73,35.4343]
[1642569686160,2.882,138.79,138.73,35.4343]
[1642569686961,40.07433622,138.78,138.73,35.4343]
[1642569687362,40.07433622,138.78,138.73,36.75382383]
[1642569687663,40.07433622,138.78,138.74,13.6926]
[1642569687861,40.07433622,138.78,138.74,13.9426]
[1642569688060,40.07433622,138.78,138.74,11.0606]
[1642569688263,40.07433622,138.78,138.74,10.5606]
[1642569688964,40.07433622,138.78,138.74,10.3106]
[1642569690566,40.07433622,138.78,138.73,24.6224]
[1642569690767,40.07433622,138.78,138.74,0.25]
[1642569692067,40.07433622,138.78,138.75,2.882]
[1642569692269,40.07433622,138.78,138.76,0.25]
[1642569692468,40.07433622,138.78,138.74,0.25]
[1642569693069,40.07433622,138.78,138.74,11.0608]
[1642569695871,4.90690909,138.81,138.74,11.0608]
[1642569696271,4.90690909,138.81,138.75,80.72]
[1642569696272,2.882,138.81,138.75,80.72]
[1642569696472,2.02490909,138.82,138.75,86.72]
[1642569696675,2.02490909,138.83,138.77,10.8078]
[1642569696874,49.16368157,138.82,138.78,22.9702]
[1642569697275,2.02490909,138.84,138.79,0.25]
[1642569697774,2.02490909,138.85,138.79,0.25]
[1642569698374,44.7513784,138.84,138.79,0.25]
[1642569698574,44.7513784,138.84,138.79,11.0568]
[1642569698775,42.72646931,138.84,138.79,11.0568]
[1642569700602,44.7513784,138.84,138.77,10.8082]
[1642569700801,5.15490909,138.83,138.76,2.882]
[1642569701002,11.15490909,138.83,138.76,2.882]
[1642569701203,2.02490909,138.82,138.76,2.882]
[1642569701402,2.882,138.81,138.76,2.882]
[1642569701705,3.132,138.81,138.76,2.882]
[1642569702300,5.15690909,138.81,138.76,2.882]
[1642569702502,13.08650909,138.81,138.76,2.882]
[1642569702702,13.08650909,138.81,138.73,13.694]
[1642569702901,13.08650909,138.81,138.74,0.25]
[1642569703503,14.26352271,138.81,138.74,0.25]
[1642569704409,2.882,138.8,138.73,2.882]
[1642569704604,10.8148,138.78,138.73,2.882]
[1642569704806,3.132,138.77,138.73,2.882]
[1642569705005,0.25,138.77,138.73,2.882]
[1642569705607,3.132,138.77,138.73,2.882]
[1642569705806,2.882,138.77,138.73,2.882]
[1642569706505,13.6969,138.77,138.73,2.882]
[1642569706708,13.6969,138.77,138.7,10.8143]
[1642569706909,13.6969,138.77,138.71,0.25]
[1642569708106,10.8149,138.77,138.71,0.25]
[1642569708307,10.8149,138.77,138.7,33.8646]
[1642569708509,11.0654,138.76,138.69,26.2525]
[1642569708709,13.9484,138.76,138.69,23.3705]
[1642569708908,13.9484,138.76,138.68,10.8154]
[1642569709114,6.0,138.75,138.68,10.8154]
[1642569709710,0.25,138.74,138.67,27.2737]
[1642569709911,49.64601977,138.73,138.67,27.2737]
[1642569710110,56.11401977,138.73,138.67,27.2737]
[1642569710713,56.11401977,138.73,138.67,2.883]
[1642569710912,66.93171977,138.73,138.67,2.883]
[1642569712116,66.93171977,138.73,138.66,10.8175]
[1642569712814,66.93171977,138.73,138.67,0.25]
[1642569716018,49.64601977,138.73,138.67,11.0668]
[1642569716218,49.64601977,138.73,138.68,3.133]
[1642569717325,49.64601977,138.73,138.68,2.883]
[1642569717621,49.64601977,138.73,138.67,10.8168]
[1642569717822,49.64601977,138.73,138.68,0.25]
[1642569718623,49.64601977,138.73,138.65,2.883]
[1642569718827,3.134,138.72,138.61,4.88981372]
[1642569719024,3.134,138.72,138.6,11.534]
[1642569719224,3.134,138.72,138.6,8.65]
[1642569719621,3.134,138.72,138.6,44.61217797]
[1642569719822,3.134,138.72,138.61,24.8307]
[1642569720024,13.9532,138.72,138.61,35.9021]